[Event "*** SCC Grand Prix: Titled Tuesday Blitz"]
[Site "Chess.com"]
[Date "2020.06.09"]
[Round "3"]
[White "lachesisQ"]
[Black "kushagramohan"]
[Result "1-0"]
[WhiteElo "3045"]
[BlackElo "2724"]
[TimeControl "180+1"]
[EndTime "9:26:10 PDT"]
[Termination "lachesisQ won by resignation"]

1. d4 {[%clk 0:03:00.9]} 1... Nf6 {[%clk 0:03:00.2]} 2. c4 {[%clk 0:02:59.8]}
2... g6 {[%clk 0:03:00.5]} 3. Nc3 {[%clk 0:02:59.7]} 3... Bg7 {[%clk 0:03:00.9]}
4. e4 {[%clk 0:02:59.3]} 4... d6 {[%clk 0:03:01.3]} 5. Nf3 {[%clk 0:02:59.5]}
5... O-O {[%clk 0:03:01.9]} 6. h3 {[%clk 0:02:59.9]} 6... c5 {[%clk 0:03:01.8]}
7. d5 {[%clk 0:02:59.6]} 7... e6 {[%clk 0:03:02.3]} 8. Bd3 {[%clk 0:02:59.5]}
8... exd5 {[%clk 0:03:02.9]} 9. exd5 {[%clk 0:02:58.9]} 9... Re8+ {[%clk
0:03:02.8]} 10. Be3 {[%clk 0:02:58.9]} 10... Nbd7 {[%clk 0:03:02.6]} 11. O-O
{[%clk 0:02:58.6]} 11... a6 {[%clk 0:03:03.2]} 12. Qd2 {[%clk 0:02:58.1]} 12...
Nh5 {[%clk 0:02:54.6]} 13. Rfe1 {[%clk 0:02:46.4]} 13... Ne5 {[%clk 0:02:46.9]}
14. Nxe5 {[%clk 0:02:40.7]} 14... Bxe5 {[%clk 0:02:46.3]} 15. Bg5 {[%clk
0:02:27.1]} 15... Qc7 {[%clk 0:02:24.3]} 16. Re2 {[%clk 0:02:04.9]} 16... Bd7
{[%clk 0:02:21.1]} 17. Rae1 {[%clk 0:02:03]} 17... Rab8 {[%clk 0:01:48.8]} 18.
g4 {[%clk 0:01:55.7]} 18... Ng7 {[%clk 0:01:47.3]} 19. Ne4 {[%clk 0:01:53.8]}
19... f5 {[%clk 0:01:30.2]} 20. Nf6+ {[%clk 0:01:51.5]} 20... Bxf6 {[%clk
0:01:30.3]} 21. Bxf6 {[%clk 0:01:52.4]} 21... fxg4 {[%clk 0:01:31.2]} 22. Qh6
{[%clk 0:01:44.2]} 22... Nh5 {[%clk 0:01:16.1]} 23. Re7 {[%clk 0:01:42.6]} 1-0

[Event "*** SCC Grand Prix: Titled Tuesday Blitz"]
[Site "Chess.com"]
[Date "2020.06.09"]
[Round "3"]
[White "Ceejay271"]
[Black "AliKa2810"]
[Result "0-1"]
[WhiteElo "2394"]
[BlackElo "2587"]
[TimeControl "180+1"]
[EndTime "9:26:10 PDT"]
[Termination "AliKa2810 won by resignation"]

1. d4 {[%clk 0:03:00.9]} 1... Nf6 {[%clk 0:02:59.4]} 2. c4 {[%clk 0:03:00]} 2...
g6 {[%clk 0:02:59.2]} 3. Nc3 {[%clk 0:02:59.9]} 3... Bg7 {[%clk 0:03:00.1]} 4.
e4 {[%clk 0:02:59.5]} 4... d6 {[%clk 0:03:00.7]} 5. Nf3 {[%clk 0:02:59.4]} 5...
O-O {[%clk 0:03:01.3]} 6. Be2 {[%clk 0:02:59.8]} 6... e5 {[%clk 0:03:01.7]} 7.
d5 {[%clk 0:02:59.8]} 7... a5 {[%clk 0:03:00.5]} 8. Bg5 {[%clk 0:02:59.8]} 8...
Na6 {[%clk 0:02:56.3]} 9. Nd2 {[%clk 0:02:59.4]} 9... Nc5 {[%clk 0:02:55.1]} 10.
g4 {[%clk 0:02:58.3]} 10... c6 {[%clk 0:02:40.9]} 11. h4 {[%clk 0:02:57.3]}
11... Qb6 {[%clk 0:02:40.3]} 12. Qc2 {[%clk 0:02:53.6]} 12... Bxg4 {[%clk
0:02:13.5]} 13. Bxg4 {[%clk 0:02:07.7]} 13... Nxg4 {[%clk 0:02:11.9]} 14. Be7
{[%clk 0:02:04.1]} 14... Rfe8 {[%clk 0:01:26.8]} 15. Bxd6 {[%clk 0:02:03]} 15...
Nxf2 {[%clk 0:01:25.1]} 16. Kxf2 {[%clk 0:02:02.2]} 16... Nxe4+ {[%clk
0:01:24.6]} 17. Ke1 {[%clk 0:01:39.1]} 17... Qf2+ {[%clk 0:01:17.3]} 18. Kd1
{[%clk 0:01:38.4]} 18... Nxd6 {[%clk 0:01:17.1]} 19. Rf1 {[%clk 0:01:25.7]}
19... Qxh4 {[%clk 0:01:16.2]} 20. c5 {[%clk 0:01:20.1]} 20... Nf5 {[%clk
0:01:14.6]} 21. d6 {[%clk 0:01:12.9]} 21... Ne3+ {[%clk 0:01:13.3]} 0-1

[Event "*** SCC Grand Prix: Titled Tuesday Blitz"]
[Site "Chess.com"]
[Date "2020.06.09"]
[Round "3"]
[White "tylityli"]
[Black "CarlosAlbornoz"]
[Result "0-1"]
[WhiteElo "2279"]
[BlackElo "2706"]
[TimeControl "180+1"]
[EndTime "9:26:28 PDT"]
[Termination "CarlosAlbornoz won by resignation"]

1. d4 {[%clk 0:02:59.1]} 1... Nf6 {[%clk 0:02:59.9]} 2. c4 {[%clk 0:02:58.6]}
2... c5 {[%clk 0:03:00.2]} 3. d5 {[%clk 0:02:58.2]} 3... b5 {[%clk 0:03:00.3]}
4. Nd2 {[%clk 0:02:57.8]} 4... b4 {[%clk 0:02:56]} 5. e4 {[%clk 0:02:53.2]} 5...
d6 {[%clk 0:02:56.2]} 6. b3 {[%clk 0:02:53.3]} 6... g6 {[%clk 0:02:56]} 7. Bb2
{[%clk 0:02:53.6]} 7... Bg7 {[%clk 0:02:56.4]} 8. Ngf3 {[%clk 0:02:53.4]} 8...
O-O {[%clk 0:02:56.8]} 9. h3 {[%clk 0:02:53]} 9... e5 {[%clk 0:02:55.7]} 10. Bd3
{[%clk 0:02:48]} 10... a5 {[%clk 0:02:55.1]} 11. a4 {[%clk 0:02:44.2]} 11... Nh5
{[%clk 0:02:53.5]} 12. O-O {[%clk 0:02:40.7]} 12... f5 {[%clk 0:02:53.1]} 13.
Re1 {[%clk 0:02:31.1]} 13... f4 {[%clk 0:02:50.2]} 14. Nh2 {[%clk 0:02:24]}
14... Nf6 {[%clk 0:02:46.7]} 15. Be2 {[%clk 0:02:23.8]} 15... g5 {[%clk
0:02:45]} 16. Bg4 {[%clk 0:02:20.3]} 16... Ra7 {[%clk 0:02:40.7]} 17. Bxc8
{[%clk 0:02:18.8]} 17... Qxc8 {[%clk 0:02:41.6]} 18. Ng4 {[%clk 0:02:16.6]}
18... Nbd7 {[%clk 0:02:41.4]} 19. f3 {[%clk 0:02:11.8]} 19... Nh5 {[%clk
0:02:36.5]} 20. Nf1 {[%clk 0:02:06.5]} 20... Qe8 {[%clk 0:02:29.4]} 21. Kf2
{[%clk 0:02:04.3]} 21... Qg6 {[%clk 0:02:28.9]} 22. Ke2 {[%clk 0:02:01.5]} 22...
Bf6 {[%clk 0:02:25.2]} 23. Kd3 {[%clk 0:01:57.9]} 23... Ng7 {[%clk 0:02:24.7]}
24. Nxf6+ {[%clk 0:01:36.6]} 24... Nxf6 {[%clk 0:02:24.1]} 25. Nh2 {[%clk
0:01:33.1]} 25... h5 {[%clk 0:02:23.1]} 26. Rh1 {[%clk 0:01:27.2]} 26... Nge8
{[%clk 0:02:22.9]} 27. Qe1 {[%clk 0:01:23.6]} 27... Rg7 {[%clk 0:02:22.2]} 28.
Bc1 {[%clk 0:01:20]} 28... g4 {[%clk 0:02:18]} 29. hxg4 {[%clk 0:01:17.2]} 29...
hxg4 {[%clk 0:02:17.1]} 30. Ra2 {[%clk 0:01:02.4]} 30... Rh7 {[%clk 0:02:13.8]}
31. Nxg4 {[%clk 0:00:51.6]} 31... Nxg4 {[%clk 0:02:11.3]} 32. fxg4 {[%clk
0:00:50.2]} 32... Rxh1 {[%clk 0:02:10.2]} 33. Qxh1 {[%clk 0:00:49.6]} 33... Nf6
{[%clk 0:02:11.1]} 34. Qh4 {[%clk 0:00:45.1]} 34... Qxe4+ {[%clk 0:02:09.7]} 35.
Kd2 {[%clk 0:00:44]} 35... Qxg2+ {[%clk 0:02:09.5]} 0-1

[Event "*** SCC Grand Prix: Titled Tuesday Blitz"]
[Site "Chess.com"]
[Date "2020.06.09"]
[Round "3"]
[White "chessplayer9919"]
[Black "carlesdc96"]
[Result "0-1"]
[WhiteElo "2520"]
[BlackElo "2730"]
[TimeControl "180+1"]
[EndTime "9:26:33 PDT"]
[Termination "carlesdc96 won by resignation"]

1. d4 {[%clk 0:03:00.9]} 1... e6 {[%clk 0:02:59.6]} 2. c4 {[%clk 0:02:58.2]}
2... Nf6 {[%clk 0:02:58.2]} 3. Nf3 {[%clk 0:02:57.6]} 3... Bb4+ {[%clk
0:02:57.6]} 4. Bd2 {[%clk 0:02:55.9]} 4... Qe7 {[%clk 0:02:57.3]} 5. Nc3 {[%clk
0:02:54.4]} 5... O-O {[%clk 0:02:56.8]} 6. e3 {[%clk 0:02:51.9]} 6... d6 {[%clk
0:02:54.4]} 7. a3 {[%clk 0:02:51.8]} 7... Bxc3 {[%clk 0:02:54.3]} 8. Bxc3 {[%clk
0:02:52.7]} 8... a5 {[%clk 0:02:54.5]} 9. Bd3 {[%clk 0:02:51.4]} 9... Nbd7
{[%clk 0:02:52.2]} 10. e4 {[%clk 0:02:45.3]} 10... e5 {[%clk 0:02:52.2]} 11. d5
{[%clk 0:02:45.7]} 11... a4 {[%clk 0:02:51.6]} 12. Bc2 {[%clk 0:02:45.1]} 12...
Nc5 {[%clk 0:02:51.3]} 13. O-O {[%clk 0:02:45.5]} 13... Nfxe4 {[%clk 0:02:49.1]}
14. Bb4 {[%clk 0:02:42]} 14... f5 {[%clk 0:02:41.4]} 15. Re1 {[%clk 0:02:36.9]}
15... b6 {[%clk 0:02:41]} 16. Nd2 {[%clk 0:02:21.6]} 16... Nxd2 {[%clk 0:02:38]}
17. Qxd2 {[%clk 0:02:22.5]} 17... f4 {[%clk 0:02:31]} 18. f3 {[%clk 0:02:04.1]}
18... Bf5 {[%clk 0:02:18.9]} 19. Bxc5 {[%clk 0:01:54.7]} 19... bxc5 {[%clk
0:02:18.9]} 20. Bxf5 {[%clk 0:01:49]} 20... Rxf5 {[%clk 0:02:19.8]} 21. Re4
{[%clk 0:01:49.7]} 21... Rb8 {[%clk 0:02:13.8]} 22. Qc2 {[%clk 0:01:49.1]} 22...
Rb3 {[%clk 0:02:10]} 23. Rae1 {[%clk 0:01:49.1]} 23... g6 {[%clk 0:02:02.4]} 24.
Qd2 {[%clk 0:01:44.9]} 24... Qh4 {[%clk 0:01:52]} 25. g3 {[%clk 0:01:08.2]}
25... Qh3 {[%clk 0:01:44.5]} 26. g4 {[%clk 0:01:07.4]} 26... Rf8 {[%clk
0:01:35.4]} 27. Qg2 {[%clk 0:00:53.5]} 27... Qxf3 {[%clk 0:01:34.1]} 28. Qxf3
{[%clk 0:00:50.8]} 28... Rxf3 {[%clk 0:01:35]} 29. Kg2 {[%clk 0:00:51.7]} 29...
Rb3 {[%clk 0:01:34.9]} 0-1

[Event "*** SCC Grand Prix: Titled Tuesday Blitz"]
[Site "Chess.com"]
[Date "2020.06.09"]
[Round "3"]
[White "MYMChessAcademy"]
[Black "1f3_2g41-0"]
[Result "1-0"]
[WhiteElo "2388"]
[BlackElo "2200"]
[TimeControl "180+1"]
[EndTime "9:26:41 PDT"]
[Termination "MYMChessAcademy won by resignation"]

1. e4 {[%clk 0:03:00.9]} 1... c5 {[%clk 0:02:57]} 2. Ne2 {[%clk 0:03:00.6]} 2...
d6 {[%clk 0:02:52.6]} 3. Nbc3 {[%clk 0:03:01]} 3... Nf6 {[%clk 0:02:52.1]} 4. g3
{[%clk 0:03:00.2]} 4... a6 {[%clk 0:02:48.8]} 5. Bg2 {[%clk 0:03:01.1]} 5... g6
{[%clk 0:02:44]} 6. O-O {[%clk 0:03:01.1]} 6... Bg7 {[%clk 0:02:44.3]} 7. d3
{[%clk 0:03:01.7]} 7... O-O {[%clk 0:02:43.9]} 8. h3 {[%clk 0:03:02.5]} 8... h5
{[%clk 0:02:42.9]} 9. f4 {[%clk 0:03:02.7]} 9... Nc6 {[%clk 0:02:42.4]} 10. f5
{[%clk 0:03:02.9]} 10... Nd4 {[%clk 0:02:41.2]} 11. Nf4 {[%clk 0:03:01.4]} 11...
gxf5 {[%clk 0:01:55]} 12. Nxh5 {[%clk 0:03:00.8]} 12... Nxh5 {[%clk 0:01:53.9]}
13. Qxh5 {[%clk 0:03:01.7]} 13... fxe4 {[%clk 0:01:53.6]} 14. Nxe4 {[%clk
0:02:53.6]} 14... Bf5 {[%clk 0:01:48.5]} 15. Rxf5 {[%clk 0:02:41.7]} 15... Nxf5
{[%clk 0:01:48.2]} 16. Qxf5 {[%clk 0:02:41.9]} 16... e6 {[%clk 0:01:48.3]} 17.
Qh5 {[%clk 0:02:40.4]} 17... f5 {[%clk 0:01:42.3]} 18. Ng5 {[%clk 0:02:23.1]}
18... Rf6 {[%clk 0:01:41.2]} 19. Qh7+ {[%clk 0:02:18.7]} 19... Kf8 {[%clk
0:01:40.3]} 20. Nf3 {[%clk 0:02:02.8]} 20... Qe8 {[%clk 0:01:15.3]} 21. Nh4
{[%clk 0:01:49.9]} 21... Qd7 {[%clk 0:00:49.4]} 22. Bg5 {[%clk 0:01:45.2]} 22...
Rf7 {[%clk 0:00:43.6]} 23. Ng6+ {[%clk 0:01:38.3]} 23... Ke8 {[%clk 0:00:42.9]}
24. Qg8+ {[%clk 0:01:36.2]} 24... Bf8 {[%clk 0:00:43.1]} 25. Bh6 {[%clk
0:01:21.8]} 1-0

[Event "*** SCC Grand Prix: Titled Tuesday Blitz"]
[Site "Chess.com"]
[Date "2020.06.09"]
[Round "3"]
[White "GM_Buhmann"]
[Black "MFguimaraes"]
[Result "1-0"]
[WhiteElo "2744"]
[BlackElo "2452"]
[TimeControl "180+1"]
[EndTime "9:26:49 PDT"]
[Termination "GM_Buhmann won by resignation"]

1. d4 {[%clk 0:03:00.9]} 1... Nf6 {[%clk 0:02:59.5]} 2. c4 {[%clk 0:03:01.1]}
2... c6 {[%clk 0:02:59.5]} 3. Nf3 {[%clk 0:03:00.8]} 3... d5 {[%clk 0:03:00.4]}
4. e3 {[%clk 0:03:01.3]} 4... e6 {[%clk 0:02:59.9]} 5. Nbd2 {[%clk 0:03:00.7]}
5... Nbd7 {[%clk 0:02:59.9]} 6. Bd3 {[%clk 0:03:01.2]} 6... Bd6 {[%clk
0:02:59.6]} 7. O-O {[%clk 0:03:01.7]} 7... O-O {[%clk 0:02:58.7]} 8. e4 {[%clk
0:03:02.2]} 8... dxe4 {[%clk 0:02:58.9]} 9. Nxe4 {[%clk 0:03:01.8]} 9... Nxe4
{[%clk 0:02:59.4]} 10. Bxe4 {[%clk 0:03:02.4]} 10... Nf6 {[%clk 0:02:59.8]} 11.
Bc2 {[%clk 0:03:02.4]} 11... h6 {[%clk 0:02:59.3]} 12. Qe2 {[%clk 0:02:58]}
12... c5 {[%clk 0:02:59.4]} 13. Rd1 {[%clk 0:02:53]} 13... Qc7 {[%clk
0:02:59.3]} 14. dxc5 {[%clk 0:02:52.4]} 14... Bxc5 {[%clk 0:02:58.3]} 15. Bd2
{[%clk 0:02:49]} 15... Bd7 {[%clk 0:02:09.6]} 16. Bc3 {[%clk 0:02:48]} 16... Bc6
{[%clk 0:02:09.9]} 17. Ne5 {[%clk 0:02:44.7]} 17... Be7 {[%clk 0:01:51.9]} 18.
Ng4 {[%clk 0:02:37.8]} 18... Qf4 {[%clk 0:01:34.5]} 19. Rd4 {[%clk 0:02:22.9]}
19... Qg5 {[%clk 0:01:14.7]} 20. Nxf6+ {[%clk 0:02:05.1]} 20... Bxf6 {[%clk
0:01:13.7]} 21. Rg4 {[%clk 0:02:05.5]} 21... Bxc3 {[%clk 0:01:02.6]} 22. Rxg5
{[%clk 0:02:04.3]} 22... Bxb2 {[%clk 0:01:02.9]} 23. Rb1 {[%clk 0:01:48.2]}
23... hxg5 {[%clk 0:01:00.4]} 24. Rxb2 {[%clk 0:01:46.4]} 24... g6 {[%clk
0:01:00.5]} 25. Be4 {[%clk 0:01:45.4]} 25... Rab8 {[%clk 0:00:43.3]} 26. Bxc6
{[%clk 0:01:42.9]} 26... bxc6 {[%clk 0:00:44.2]} 27. Rxb8 {[%clk 0:01:42]} 27...
Rxb8 {[%clk 0:00:45.1]} 28. h3 {[%clk 0:01:42.3]} 28... c5 {[%clk 0:00:42.6]}
29. Qe5 {[%clk 0:01:41.3]} 29... Rb1+ {[%clk 0:00:42.4]} 30. Kh2 {[%clk
0:01:40.7]} 30... Rf1 {[%clk 0:00:39.2]} 31. Qxc5 {[%clk 0:01:40.3]} 1-0

[Event "*** SCC Grand Prix: Titled Tuesday Blitz"]
[Site "Chess.com"]
[Date "2020.06.09"]
[Round "3"]
[White "Karateloru"]
[Black "marianokar"]
[Result "1-0"]
[WhiteElo "2611"]
[BlackElo "2407"]
[TimeControl "180+1"]
[EndTime "9:26:52 PDT"]
[Termination "Karateloru won on time"]

1. e4 {[%clk 0:03:00.9]} 1... e6 {[%clk 0:02:59.7]} 2. Nc3 {[%clk 0:02:59.9]}
2... d5 {[%clk 0:02:58.2]} 3. Nf3 {[%clk 0:03:00.4]} 3... Nf6 {[%clk 0:02:42.2]}
4. e5 {[%clk 0:03:00.2]} 4... Nfd7 {[%clk 0:02:41.9]} 5. d4 {[%clk 0:03:01.1]}
5... c5 {[%clk 0:02:42.5]} 6. dxc5 {[%clk 0:03:01.1]} 6... Nc6 {[%clk
0:02:41.4]} 7. Bf4 {[%clk 0:03:01.1]} 7... Bxc5 {[%clk 0:02:38.4]} 8. Bd3 {[%clk
0:03:01.5]} 8... a6 {[%clk 0:02:11.6]} 9. a3 {[%clk 0:02:59.2]} 9... h6 {[%clk
0:01:56.6]} 10. h4 {[%clk 0:02:58.4]} 10... Qc7 {[%clk 0:01:48.4]} 11. Qe2
{[%clk 0:02:51.9]} 11... Nd4 {[%clk 0:01:38.4]} 12. Nxd4 {[%clk 0:02:40]} 12...
Bxd4 {[%clk 0:01:38.3]} 13. O-O {[%clk 0:02:37.7]} 13... g5 {[%clk 0:00:25.9]}
14. Bh2 {[%clk 0:02:31]} 14... Bxe5 {[%clk 0:00:21.3]} 15. f4 {[%clk 0:02:24]}
15... Bxc3 {[%clk 0:00:15.5]} 16. bxc3 {[%clk 0:02:23.9]} 16... Qc5+ {[%clk
0:00:13.5]} 17. Kh1 {[%clk 0:02:23.4]} 17... gxh4 {[%clk 0:00:09.8]} 18. f5
{[%clk 0:02:21.9]} 18... Nb6 {[%clk 0:00:10]} 19. Bg1 {[%clk 0:02:16.6]} 19...
Qc6 {[%clk 0:00:09.1]} 20. Qe5 {[%clk 0:02:16.4]} 20... Rg8 {[%clk 0:00:06.9]}
21. Rab1 {[%clk 0:02:12.1]} 21... Nd7 {[%clk 0:00:04.3]} 22. Qe3 {[%clk
0:02:08.4]} 22... e5 {[%clk 0:00:03.1]} 23. f6 {[%clk 0:02:01.6]} 23... b6
{[%clk 0:00:01.3]} 24. Bf5 {[%clk 0:01:57.8]} 1-0

[Event "*** SCC Grand Prix: Titled Tuesday Blitz"]
[Site "Chess.com"]
[Date "2020.06.09"]
[Round "3"]
[White "martabartel"]
[Black "NIGWAPO"]
[Result "0-1"]
[WhiteElo "2326"]
[BlackElo "2554"]
[TimeControl "180+1"]
[EndTime "9:26:59 PDT"]
[Termination "NIGWAPO won by resignation"]

1. d4 {[%clk 0:03:00.9]} 1... Nf6 {[%clk 0:03:00.9]} 2. Nf3 {[%clk 0:02:59.9]}
2... c5 {[%clk 0:03:01.8]} 3. d5 {[%clk 0:02:59.1]} 3... e6 {[%clk 0:03:02]} 4.
c4 {[%clk 0:02:56]} 4... exd5 {[%clk 0:03:02.2]} 5. cxd5 {[%clk 0:02:55.6]} 5...
d6 {[%clk 0:03:03.1]} 6. Nc3 {[%clk 0:02:55.1]} 6... g6 {[%clk 0:03:04]} 7. Bf4
{[%clk 0:02:50.8]} 7... a6 {[%clk 0:03:03.7]} 8. a4 {[%clk 0:02:49.6]} 8... Bg7
{[%clk 0:03:03.4]} 9. h3 {[%clk 0:02:49.7]} 9... O-O {[%clk 0:03:03.8]} 10. e3
{[%clk 0:02:49.4]} 10... Re8 {[%clk 0:03:04.3]} 11. Be2 {[%clk 0:02:49]} 11...
Ne4 {[%clk 0:03:03.9]} 12. Nxe4 {[%clk 0:02:19.9]} 12... Rxe4 {[%clk 0:03:04.8]}
13. Nd2 {[%clk 0:02:19.6]} 13... Rb4 {[%clk 0:03:00.4]} 14. Nc4 {[%clk 0:02:07]}
14... Bf8 {[%clk 0:02:53.2]} 15. O-O {[%clk 0:02:04.3]} 15... b6 {[%clk
0:02:53.3]} 16. Qc2 {[%clk 0:02:00.8]} 16... Bb7 {[%clk 0:02:53.3]} 17. e4
{[%clk 0:01:55.2]} 17... b5 {[%clk 0:02:53.3]} 18. axb5 {[%clk 0:01:52.4]} 18...
axb5 {[%clk 0:02:54.2]} 19. Rxa8 {[%clk 0:01:50]} 19... Bxa8 {[%clk 0:02:53.9]}
20. Ne3 {[%clk 0:01:45.5]} 20... Qf6 {[%clk 0:02:52.4]} 21. Bg3 {[%clk 0:01:35]}
21... Qxb2 {[%clk 0:02:50.5]} 22. Qd1 {[%clk 0:00:58.3]} 22... Rxe4 {[%clk
0:02:47.3]} 23. Qa1 {[%clk 0:00:49.5]} 23... Qxe2 {[%clk 0:02:39.8]} 24. Qxa8
{[%clk 0:00:47.9]} 24... Re8 {[%clk 0:02:36.2]} 25. Ng4 {[%clk 0:00:40.3]} 25...
Nd7 {[%clk 0:02:34.8]} 26. Qb7 {[%clk 0:00:38.1]} 26... h5 {[%clk 0:02:31.3]}
27. Qxd7 {[%clk 0:00:29]} 27... hxg4 {[%clk 0:02:31.1]} 28. hxg4 {[%clk
0:00:28.8]} 28... b4 {[%clk 0:02:19.2]} 29. Bxd6 {[%clk 0:00:28]} 29... Bxd6
{[%clk 0:02:18]} 30. Qxd6 {[%clk 0:00:27.9]} 30... Qb5 {[%clk 0:02:14.5]} 31.
Rc1 {[%clk 0:00:16.5]} 31... c4 {[%clk 0:02:13.8]} 32. Qc6 {[%clk 0:00:16.5]}
32... Qxc6 {[%clk 0:02:13.2]} 33. dxc6 {[%clk 0:00:16.4]} 33... c3 {[%clk
0:02:13.7]} 34. Kf1 {[%clk 0:00:14.7]} 34... Rc8 {[%clk 0:02:12.8]} 35. Ke2
{[%clk 0:00:14.1]} 35... Rxc6 {[%clk 0:02:12.8]} 36. Kd3 {[%clk 0:00:14.3]}
36... Kf8 {[%clk 0:02:11.6]} 37. Rb1 {[%clk 0:00:14.4]} 37... c2 {[%clk
0:02:10.4]} 38. Rc1 {[%clk 0:00:13.5]} 38... b3 {[%clk 0:02:10.7]} 0-1

[Event "*** SCC Grand Prix: Titled Tuesday Blitz"]
[Site "Chess.com"]
[Date "2020.06.09"]
[Round "3"]
[White "Koalaskakistis"]
[Black "hepyeke"]
[Result "1-0"]
[WhiteElo "2444"]
[BlackElo "2200"]
[TimeControl "180+1"]
[EndTime "9:27:02 PDT"]
[Termination "Koalaskakistis won by resignation"]

1. f4 {[%clk 0:03:00.9]} 1... c5 {[%clk 0:02:58.7]} 2. Nf3 {[%clk 0:03:01]} 2...
Nc6 {[%clk 0:02:59.2]} 3. g3 {[%clk 0:03:01.1]} 3... g6 {[%clk 0:02:59.7]} 4.
Bg2 {[%clk 0:03:01.2]} 4... Bg7 {[%clk 0:03:00.4]} 5. O-O {[%clk 0:03:02]} 5...
d6 {[%clk 0:03:00.3]} 6. e4 {[%clk 0:03:01.3]} 6... Nf6 {[%clk 0:03:00.7]} 7.
Nc3 {[%clk 0:03:00.6]} 7... O-O {[%clk 0:03:00.6]} 8. d3 {[%clk 0:02:58.9]} 8...
Rb8 {[%clk 0:02:59.5]} 9. h3 {[%clk 0:02:51.3]} 9... b5 {[%clk 0:02:58.5]} 10.
g4 {[%clk 0:02:51.1]} 10... b4 {[%clk 0:02:56.7]} 11. Ne2 {[%clk 0:02:50.2]}
11... Ne8 {[%clk 0:02:57.3]} 12. g5 {[%clk 0:02:44.2]} 12... Nc7 {[%clk
0:02:53.5]} 13. h4 {[%clk 0:02:37.4]} 13... Ba6 {[%clk 0:02:48.8]} 14. h5 {[%clk
0:02:30]} 14... c4 {[%clk 0:02:47.2]} 15. d4 {[%clk 0:02:18.3]} 15... c3 {[%clk
0:02:47.4]} 16. bxc3 {[%clk 0:02:17.7]} 16... bxc3 {[%clk 0:02:46.1]} 17. Be3
{[%clk 0:02:17.7]} 17... d5 {[%clk 0:02:22.2]} 18. e5 {[%clk 0:02:12.3]} 18...
Qd7 {[%clk 0:02:05.3]} 19. Kh2 {[%clk 0:01:58.5]} 19... Bxe2 {[%clk 0:01:57.3]}
20. Qxe2 {[%clk 0:01:57]} 20... Qg4 {[%clk 0:01:57.8]} 21. h6 {[%clk 0:01:45.3]}
21... Bh8 {[%clk 0:01:52.1]} 22. Bh3 {[%clk 0:01:44.1]} 22... Qh5 {[%clk
0:01:46.7]} 23. Qg2 {[%clk 0:01:43.9]} 23... Rb2 {[%clk 0:01:37.9]} 24. Kg3
{[%clk 0:01:36.9]} 24... f5 {[%clk 0:01:31.9]} 25. exf6 {[%clk 0:01:35.7]} 25...
exf6 {[%clk 0:01:16.7]} 26. Bg4 {[%clk 0:01:34.8]} 26... Ne7 {[%clk 0:00:59.1]}
27. Bxh5 {[%clk 0:01:33.3]} 27... Nf5+ {[%clk 0:00:57.1]} 28. Kh3 {[%clk
0:01:26]} 28... Nxe3 {[%clk 0:00:56.8]} 29. Qe2 {[%clk 0:01:25.4]} 29... Nxf1
{[%clk 0:00:54]} 30. Bxg6 {[%clk 0:01:25.3]} 30... hxg6 {[%clk 0:00:52.2]} 31.
Qe7 {[%clk 0:01:25.3]} 31... Rf7 {[%clk 0:00:44.8]} 32. Qe8+ {[%clk 0:01:24.9]}
32... Kh7 {[%clk 0:00:44.9]} 33. Qxf7+ {[%clk 0:01:23.4]} 1-0

[Event "*** SCC Grand Prix: Titled Tuesday Blitz"]
[Site "Chess.com"]
[Date "2020.06.09"]
[Round "3"]
[White "TigranMukhutdinov"]
[Black "pfalcon1949"]
[Result "1-0"]
[WhiteElo "2476"]
[BlackElo "1928"]
[TimeControl "180+1"]
[EndTime "9:27:03 PDT"]
[Termination "TigranMukhutdinov won by resignation"]

1. Nf3 {[%clk 0:03:00.9]} 1... d5 {[%clk 0:02:59.3]} 2. g3 {[%clk 0:03:00.9]}
2... Nf6 {[%clk 0:02:59.6]} 3. Bg2 {[%clk 0:03:01.5]} 3... e6 {[%clk 0:03:00.2]}
4. c4 {[%clk 0:02:58.3]} 4... Be7 {[%clk 0:02:59.6]} 5. O-O {[%clk 0:02:58.8]}
5... O-O {[%clk 0:02:59.7]} 6. d4 {[%clk 0:02:59.4]} 6... dxc4 {[%clk
0:02:58.8]} 7. Ne5 {[%clk 0:02:59.9]} 7... Nc6 {[%clk 0:02:57.7]} 8. Bxc6 {[%clk
0:03:00.3]} 8... bxc6 {[%clk 0:02:57.6]} 9. Nxc6 {[%clk 0:03:01.2]} 9... Qe8
{[%clk 0:02:56.8]} 10. Nxe7+ {[%clk 0:03:02.1]} 10... Qxe7 {[%clk 0:02:56.9]}
11. Qc2 {[%clk 0:03:03]} 11... a5 {[%clk 0:02:57]} 12. Nc3 {[%clk 0:03:00]}
12... c5 {[%clk 0:02:54.5]} 13. Rd1 {[%clk 0:02:55.8]} 13... cxd4 {[%clk
0:02:53.8]} 14. Rxd4 {[%clk 0:02:56.7]} 14... Qc5 {[%clk 0:02:53.6]} 15. Be3
{[%clk 0:02:55.7]} 15... Bb7 {[%clk 0:02:39.8]} 16. f3 {[%clk 0:02:51.4]} 16...
Rac8 {[%clk 0:02:33]} 17. Kf2 {[%clk 0:02:46.7]} 17... Qh5 {[%clk 0:02:21]} 18.
Rh4 {[%clk 0:02:43.7]} 18... Qg6 {[%clk 0:02:08.6]} 19. Qa4 {[%clk 0:02:40.2]}
19... Nd5 {[%clk 0:01:57.3]} 20. Nxd5 {[%clk 0:02:37]} 20... exd5 {[%clk
0:01:52.4]} 21. Qxa5 {[%clk 0:02:36.5]} 21... Qc2 {[%clk 0:01:51.6]} 22. Bd4
{[%clk 0:02:35]} 22... Rfe8 {[%clk 0:01:43.6]} 23. Re1 {[%clk 0:02:34.4]} 23...
Re6 {[%clk 0:01:26.7]} 24. Qa7 {[%clk 0:02:16.7]} 24... Ba6 {[%clk 0:01:21.6]}
25. Rg4 {[%clk 0:02:14.1]} 25... g6 {[%clk 0:01:11.2]} 26. Rf4 {[%clk
0:02:10.8]} 26... Rf8 {[%clk 0:00:44.8]} 27. Rf6 {[%clk 0:02:10.5]} 27... Rxf6
{[%clk 0:00:29.2]} 28. Bxf6 {[%clk 0:02:11.4]} 28... Bb5 {[%clk 0:00:17.4]} 29.
Qd4 {[%clk 0:02:10.6]} 29... c3 {[%clk 0:00:16.5]} 30. Qxc3 {[%clk 0:02:00.4]}
30... Qxc3 {[%clk 0:00:15.8]} 31. Bxc3 {[%clk 0:02:01.1]} 31... Bc4 {[%clk
0:00:16.6]} 32. b3 {[%clk 0:02:00.8]} 32... Ra8 {[%clk 0:00:17.1]} 33. bxc4
{[%clk 0:02:00.5]} 33... Rxa2 {[%clk 0:00:18]} 34. Rb1 {[%clk 0:01:59.2]} 34...
Kf8 {[%clk 0:00:16.2]} 35. cxd5 {[%clk 0:01:59.3]} 35... Ke7 {[%clk 0:00:16.1]}
36. Be5 {[%clk 0:01:59.2]} 36... Rd2 {[%clk 0:00:14.8]} 37. Rb7+ {[%clk
0:01:57.4]} 1-0